bitfinex/quotes_SOLUSD_20250424
["timestamp","ask_amount","ask_price","bid_price","bid_amount"]
[1745525548400,100.32423728,152.17,152.15,4.87498248]
[1745525549203,100.32423728,152.17,152.14,6.57247874]
[1745525551200,0.03,152.19,152.15,7.32300126]
[1745525551201,126.32423728,152.16,152.15,7.32300126]
[1745525551394,67.820504,152.16,152.15,7.32300126]
[1745525551574,50.19626672,152.16,152.15,7.32300126]
[1745525551776,43.62423728,152.16,152.15,2.44100043]
[1745525551994,43.62423728,152.16,152.09,17.62423728]
[1745525552307,43.62423728,152.16,152.08,17.62423728]
[1745525552308,17.62423728,152.12,152.08,17.62423728]
[1745525552487,17.62423728,152.12,152.09,2.44420676]
[1745525552688,17.62423728,152.14,152.1,22.51248073]
[1745525553692,17.62423728,152.14,152.11,2.44420676]
[1745525554093,17.62423728,152.14,152.12,4.88824345]
[1745525554784,17.62423728,152.14,152.1,6.57457843]
[1745525555293,17.62423728,152.12,152.08,6.57548658]
[1745525555619,17.62423728,152.12,152.09,2.44423157]
[1745525555787,17.62423728,152.12,152.09,7.33269471]
[1745525556487,17.62423728,152.12,152.1,2.44423157]
[1745525556896,17.62423728,152.12,152.11,4.88846314]
[1745525557713,17.62423728,152.12,152.11,7.33269471]
[1745525560212,17.62423728,152.12,152.07,6.57590029]
[1745525560413,100.32423728,152.11,152.07,6.57590029]
[1745525560917,100.32423728,152.11,152.08,7.33483215]
[1745525561921,100.32423728,152.11,152.09,7.33483215]
[1745525562417,100.32423728,152.11,152.09,4.88988752]
[1745525562597,100.32423728,152.11,152.07,6.57590029]
[1745525562598,100.32423728,152.11,152.1,4.88988752]
[1745525563305,93.98763672,152.11,152.1,4.88988752]
[1745525564524,93.98763672,152.11,152.07,6.57589796]
[1745525564894,11.28763672,152.1,152.06,6.5762359]
[1745525565101,11.28763672,152.09,152.05,17.92721993]
[1745525565618,11.28763672,152.09,152.06,7.32974436]
[1745525565998,11.28763672,152.1,152.06,7.32974436]
[1745525566424,11.28763672,152.1,152.07,2.4428164]
[1745525566924,11.28763672,152.1,152.08,4.88692796]
[1745525567099,82.7,152.09,152.08,4.88692796]
[1745525567513,93.98763672,152.09,152.08,4.88692796]
[1745525567715,93.98763672,152.09,152.06,6.57634451]
[1745525569227,93.98763672,152.09,152.05,17.92722489]
[1745525569427,11.28763672,152.07,152.06,4.88405426]
[1745525570423,11.28763672,152.07,152.05,0.063]
[1745525570606,11.28763672,152.06,152.05,0.063]
[1745525572837,11.28763672,152.07,152.05,0.063]
[1745525574221,11.28763672,152.06,152.05,0.063]
[1745525578737,17.86398816,152.06,152.05,0.063]
[1745525579919,11.28763672,152.06,152.05,0.063]
[1745525580720,26.0,152.09,152.05,0.063]
[1745525581035,11.28763672,152.07,152.05,0.063]
[1745525582215,26.0,152.09,152.05,0.063]
[1745525582419,11.28763672,152.07,152.05,0.063]
[1745525582937,11.28763672,152.06,152.05,0.063]
[1745525587654,17.86398816,152.06,152.05,0.063]
[1745525588131,43.86398816,152.06,152.05,0.063]
[1745525589341,37.28763672,152.06,152.05,0.063]
[1745525591659,43.86398816,152.06,152.05,0.063]
[1745525592266,37.28763672,152.06,152.05,0.063]
[1745525593769,11.28763672,152.07,152.05,0.063]
[1745525594074,11.28763672,152.06,152.05,0.063]
[1745525602868,17.86398816,152.06,152.05,0.063]
[1745525603558,43.86398816,152.06,152.05,0.063]
[1745525604859,36.65579859,152.06,152.05,0.063]
[1745525605468,41.95704785,152.06,152.05,0.063]
[1745525606277,36.65579859,152.06,152.04,0.063]
[1745525606488,56.07944715,152.04,152.03,0.063]
[1745525606783,61.9306578,152.04,152.03,0.063]
[1745525607367,82.637,152.03,152.01,0.063]
[1745525607567,61.9306578,152.04,152.01,0.063]
[1745525607568,93.92463672,152.02,152.01,0.063]
[1745525608072,100.50271855,152.02,152.01,0.063]
[1745525608274,93.92463672,152.02,152.01,0.063]
[1745525611297,145.29452898,152.02,152.0,0.063]
[1745525611488,56.4381836,152.01,152.0,0.063]
[1745525612389,82.574,151.97,151.96,0.063]
[1745525612592,93.86163672,151.97,151.96,0.063]
[1745525614991,82.574,151.97,151.96,0.063]
[1745525615585,93.86163672,151.97,151.96,0.063]
[1745525617314,82.574,151.97,151.96,0.063]
[1745525619701,93.86163672,151.97,151.96,0.063]
[1745525620411,82.574,151.97,151.96,0.063]
[1745525622031,93.86163672,151.97,151.96,0.063]
[1745525623017,100.44188282,151.97,151.96,0.063]
[1745525623434,93.86163672,151.97,151.96,0.063]
[1745525624039,100.44188282,151.97,151.96,0.063]
[1745525625020,17.86788282,151.97,151.96,0.063]
[1745525626128,43.86788282,151.97,151.96,0.063]
[1745525627728,17.86788282,151.97,151.96,0.063]
[1745525628328,26.0,151.95,151.94,0.063]
[1745525628629,37.28763672,151.95,151.94,0.063]
[1745525629711,43.86874892,151.95,151.94,0.063]
[1745525631927,62.66055935,151.95,151.94,0.063]
[1745525632519,79.11333986,151.95,151.92,0.063]
[1745525632716,11.28763672,151.93,151.92,0.063]
[1745525634821,17.86961526,151.93,151.92,0.063]
[1745525635439,11.28763672,151.93,151.92,0.063]
[1745525636436,17.86961526,151.93,151.92,0.063]
[1745525636944,11.28763672,151.93,151.92,0.063]
[1745525637460,17.86961526,151.93,151.92,0.063]
[1745525638015,63.02016214,151.93,151.92,0.063]
[1745525638928,44.64964886,151.92,151.91,0.063]
[1745525639144,11.28763672,151.91,151.9,0.063]
[1745525640744,17.87048182,151.91,151.9,0.063]
[1745525643144,36.66229225,151.91,151.9,0.063]
[1745525643845,17.87048182,151.91,151.9,0.063]
[1745525644145,43.87048182,151.91,151.9,0.063]
[1745525648043,37.28763672,151.91,151.9,0.063]
[1745525648647,11.28763672,151.91,151.9,0.063]
[1745525648863,37.28763672,151.92,151.9,0.063]
[1745525649061,25.635143,151.96,151.9,11.35063672]
[1745525649364,11.28763672,151.94,151.9,11.35063672]
[1745525649538,26.0,151.95,151.9,11.35063672]
[1745525649739,11.28763672,151.94,151.9,11.35063672]
[1745525650135,11.28763672,151.94,151.9,17.93355745]
[1745525650761,11.28763672,151.94,151.9,6.64592073]
[1745525652963,11.28763672,151.94,151.9,17.93355745]
[1745525653268,11.28763672,151.94,151.9,11.35063672]
[1745525654167,11.28763672,151.94,151.9,17.93377356]
[1745525654360,82.7,151.93,151.9,17.93377356]
[1745525657351,82.7,151.93,151.9,0.063]
[1745525657553,82.7,151.93,151.9,11.35063672]
[1745525658473,93.98763672,151.93,151.9,0.063]
[1745525658773,11.28763672,151.92,151.9,0.063]
[1745525659469,11.28763672,151.91,151.9,0.063]
[1745525664167,17.87048182,151.91,151.9,0.063]
[1745525669282,11.28763672,151.91,151.9,0.063]
[1745525669583,17.87048182,151.91,151.9,0.063]
[1745525672583,11.28763672,151.91,151.9,0.063]
[1745525676588,6.58265726,151.92,151.9,0.063]
[1745525676765,11.28763672,151.91,151.9,0.063]
[1745525678871,17.87048182,151.91,151.9,0.063]
[1745525682493,26.0,151.87,151.85,0.063]
[1745525682669,11.28763672,151.86,151.85,0.063]
[1745525684078,17.87264923,151.86,151.85,0.063]
[1745525686086,47.87264923,151.86,151.85,0.063]
[1745525686606,41.28763672,151.86,151.85,0.063]
[1745525686836,30.0,151.86,151.85,0.063]
[1745525687689,11.28763672,151.89,151.85,0.063]
[1745525688010,11.28763672,151.88,151.85,0.063]
[1745525688185,11.28763672,151.88,151.85,6.69468808]
[1745525691518,11.28763672,151.86,151.85,0.109386]
[1745525694502,17.87264923,151.86,151.85,0.109386]
[1745525697115,11.28763672,151.86,151.85,0.109386]
[1745525698325,11.28763672,151.86,151.8,12.86273672]
[1745525698326,6.52026157,151.83,151.8,0.063]
[1745525698496,18.79181043,151.8,151.78,0.03]
[1745525698700,18.79181043,151.78,151.76,0.063]
[1745525698902,26.0,151.75,151.74,0.063]
[1745525699096,43.87742255,151.75,151.74,0.063]
[1745525699736,17.87742255,151.75,151.74,0.063]
[1745525700724,11.28763672,151.75,151.74,0.063]
[1745525701031,11.28763672,151.76,151.74,0.063]
[1745525701228,26.0,151.77,151.74,0.063]
[1745525701229,11.28763672,151.75,151.74,0.063]
[1745525701433,17.7212349,151.75,151.74,0.063]
[1745525703538,24.31102073,151.75,151.74,0.063]
[1745525704209,17.7212349,151.75,151.74,0.063]
[1745525704525,17.7212349,151.76,151.74,0.063]
[1745525705728,17.7212349,151.75,151.74,0.063]
[1745525707830,24.31102073,151.75,151.74,0.063]
[1745525708330,17.7212349,151.75,151.74,0.063]
[1745525708829,24.31102073,151.75,151.74,0.063]
[1745525709038,17.7212349,151.75,151.74,0.063]
[1745525709531,6.58908378,151.77,151.74,0.063]
[1745525709734,17.7212349,151.75,151.74,0.063]
[1745525711871,24.31102073,151.75,151.74,0.063]
[1745525712047,17.7212349,151.75,151.74,0.063]
[1745525721252,11.34352959,151.75,151.74,0.063]
[1745525722645,17.93331542,151.75,151.74,0.063]
[1745525723858,43.93331542,151.75,151.74,0.063]
[1745525732068,37.34352959,151.75,151.74,0.063]
[1745525733763,43.93331542,151.75,151.74,0.063]
[1745525740581,26.0,151.72,151.69,0.03]
[1745525740887,11.34352959,151.7,151.69,0.03]
[1745525743761,11.34352959,151.7,151.69,2.49338893]
[1745525744066,11.34352959,151.7,151.69,7.42017287]
[1745525744373,17.9354874,151.7,151.69,7.42017287]
[1745525746088,26.0,151.68,151.67,0.03]
[1745525746253,82.71764795,151.68,151.67,0.03]
[1745525746459,37.34352959,151.68,151.67,0.03]
[1745525747760,43.93635659,151.68,151.67,0.03]
[1745525747960,89.31047495,151.68,151.67,0.03]
[1745525748161,43.93635659,151.68,151.67,0.03]
[1745525749590,89.31047495,151.68,151.67,0.03]
[1745525750080,43.93635659,151.68,151.67,0.03]
[1745525751075,89.31047495,151.68,151.67,0.03]
[1745525753386,43.93635659,151.68,151.67,0.03]
[1745525754085,89.31047495,151.68,151.67,0.03]
[1745525756862,26.0,151.64,151.6,1.6771]
[1745525757061,11.34352959,151.61,151.6,1.6771]
[1745525757574,11.34352959,151.62,151.6,1.6771]
[1745525757969,11.34352959,151.61,151.6,1.6771]
[1745525758561,32.59441679,151.65,151.6,1.6771]
[1745525758766,26.0,151.65,151.6,8.2733777]
[1745525758969,37.34352959,151.65,151.6,19.61690729]
[1745525759280,11.34352959,151.64,151.6,19.61690729]
[1745525760574,11.34352959,151.64,151.6,8.2733777]
[1745525760779,11.34352959,151.63,151.6,1.6771]
[1745525760976,11.34352959,151.63,151.6,8.27327004]
[1745525761164,45.37411836,151.68,151.6,8.27327004]
[1745525761165,11.34352959,151.64,151.6,8.27327004]
[1745525761561,11.34352959,151.64,151.6,19.61679963]
[1745525762779,82.7,151.66,151.61,11.34352959]
[1745525762995,94.04352959,151.66,151.61,11.34352959]
[1745525763986,11.34352959,151.65,151.61,11.34352959]
[1745525764166,82.7,151.66,151.61,11.34352959]
[1745525764364,82.7,151.66,151.63,11.34352959]
[1745525764584,82.7,151.66,151.62,11.34352959]
[1745525764963,82.7,151.66,151.63,6.59500098]
[1745525765870,82.7,151.66,151.63,17.93853057]
[1745525766067,82.7,151.66,151.63,6.59500098]
[1745525766390,82.7,151.66,151.6,18.16786517]
[1745525766391,11.34352959,151.65,151.61,17.93940057]
[1745525766687,94.04352959,151.66,151.62,11.34352959]
[1745525767394,94.04352959,151.66,151.63,6.59500098]
[1745525769893,82.7,151.66,151.63,6.59500098]
[1745525770999,82.7,151.68,151.64,11.34352959]
[1745525771291,82.7,151.68,151.65,11.34352959]
[1745525772002,82.7,151.68,151.66,6.59369642]
[1745525773676,82.7,151.68,151.66,19.45842601]
[1745525776395,82.7,151.68,151.66,8.11489642]
[1745525776993,94.04352959,151.68,151.64,17.99902959]
[1745525777196,82.7,151.68,151.65,2.45538957]
[1745525777374,82.7,151.68,151.65,13.79891916]
[1745525778306,82.7,151.68,151.66,2.45538957]
[1745525778488,94.04352959,151.68,151.66,2.45538957]
[1745525779089,11.34352959,151.67,151.66,2.45538957]
[1745525779404,11.34352959,151.67,151.63,2.45538957]
[1745525779584,11.34352959,151.65,151.63,2.45538957]
[1745525780004,11.34352959,151.65,151.64,2.45538957]
[1745525780776,11.34352959,151.65,151.63,2.45538957]
[1745525780977,11.34352959,151.64,151.63,2.45538957]
[1745525781611,11.34352959,151.64,151.61,2.45538957]
[1745525781914,11.34352959,151.62,151.61,2.45538957]
[1745525784382,11.34352959,151.63,151.61,2.45538957]
[1745525784985,89.29441926,151.65,151.61,2.45538957]
[1745525784986,11.34352959,151.64,151.61,9.05115879]
[1745525785179,11.34352959,151.64,151.61,2.45538957]
[1745525785595,94.04352959,151.65,151.61,9.05093599]
[1745525786383,94.04352959,151.65,151.62,2.45538957]
[1745525786978,94.04352959,151.65,151.62,9.05069874]
[1745525787179,94.04352959,151.65,151.62,6.59530917]
[1745525787608,82.7,151.65,151.62,17.93883876]
[1745525787782,82.7,151.67,151.64,11.34352959]
[1745525787986,82.7,151.67,151.65,2.45988309]
[1745525789210,82.7,151.67,151.66,2.45988309]
[1745525790309,94.04352959,151.67,151.66,2.45988309]
[1745525792909,82.7,151.67,151.66,2.45988309]
[1745525793088,94.04352959,151.67,151.66,2.45988309]
[1745525795819,82.7,151.67,151.66,2.45988309]
[1745525799422,11.34352959,151.69,151.66,2.45988309]
[1745525799589,94.04352959,151.69,151.66,2.45988309]
[1745525800102,94.04352959,151.69,151.65,6.59395005]
[1745525800510,94.04352959,151.69,151.65,17.93747964]
[1745525801822,94.04352959,151.69,151.66,2.45704462]
[1745525802422,94.04352959,151.69,151.66,9.05054828]
[1745525802726,94.04352959,151.69,151.65,17.93749022]
[1745525802917,94.04352959,151.69,151.65,6.59396063]
[1745525803909,94.04352959,151.69,151.65,17.93749022]
[1745525804114,94.04352959,151.69,151.66,9.05044951]
[1745525805006,94.04352959,151.69,151.66,6.59351719]
[1745525806125,94.04352959,151.69,151.67,2.45842055]
[1745525806818,94.04352959,151.69,151.66,6.59351719]
[1745525808431,94.04352959,151.69,151.67,2.4591229]
[1745525809624,94.04352959,151.69,151.66,6.59351719]
[1745525810327,82.7,151.69,151.66,6.59351719]
[1745525811624,82.7,151.69,151.67,2.45907292]
[1745525812515,82.7,151.69,151.66,17.93704678]
[1745525813422,82.7,151.69,151.67,11.34352959]
[1745525813598,82.7,151.69,151.66,11.34352959]
[1745525814103,82.7,151.69,151.67,2.45829936]
[1745525814717,82.7,151.69,151.68,2.45829936]
[1745525815602,94.04352959,151.71,151.68,9.05095555]
[1745525816619,94.04352959,151.71,151.68,6.59265619]
[1745525816824,11.34352959,151.7,151.67,6.59315116]
[1745525817205,94.04352959,151.71,151.67,6.59315116]
[1745525817408,94.04352959,151.71,151.67,17.93668075]
[1745525817723,94.04352959,151.71,151.68,2.45724374]
[1745525818530,94.04352959,151.71,151.67,17.93668075]
[1745525818731,82.7,151.71,151.67,17.93668075]
[1745525818917,82.7,151.71,151.69,11.34352959]
[1745525819636,82.7,151.71,151.7,11.34352959]
[1745525819807,82.7,151.73,151.7,11.34352959]
[1745525821135,82.7,151.73,151.7,17.93533769]
[1745525821429,94.04352959,151.73,151.7,6.5918081]
[1745525822430,94.04352959,151.73,151.69,11.34352959]
[1745525822431,94.04352959,151.73,151.69,17.93577484]
[1745525822607,11.34352959,151.72,151.68,6.59263881]
[1745525822928,11.34352959,151.71,151.66,24.54352959]
[1745525823136,11.34352959,151.7,151.67,6.59311869]
[1745525823431,11.34352959,151.71,151.67,17.93664828]
[1745525823631,11.34352959,151.71,151.68,2.45607085]
[1745525824133,94.04352959,151.72,151.68,2.45607085]
[1745525824632,94.04352959,151.72,151.69,2.45607085]
[1745525825128,82.7,151.72,151.7,6.59195781]
[1745525825329,82.7,151.72,151.7,17.9354874]
[1745525827713,82.7,151.72,151.71,11.34352959]
[1745525828019,82.7,151.72,151.71,13.79757132]
[1745525830145,82.7,151.72,151.71,20.38909462]
[1745525830317,0.063,151.74,151.71,20.38909462]
[1745525830633,11.34352959,151.73,151.71,2.45404173]
[1745525830836,11.34352959,151.73,151.7,6.59191837]
[1745525832211,11.40652959,151.74,151.7,6.59191837]
[1745525832412,11.40652959,151.74,151.7,17.93544796]
[1745525832630,11.40652959,151.74,151.71,2.45605673]
[1745525833112,11.40652959,151.74,151.7,17.93544796]
[1745525833751,0.063,151.74,151.71,11.34352959]
[1745525834428,0.063,151.74,151.72,6.59108884]
[1745525836045,11.40652959,151.74,151.71,6.59134033]
[1745525839343,11.40652959,151.74,151.7,6.59195781]
[1745525839739,11.40652959,151.74,151.71,2.45378003]
[1745525840548,11.40652959,151.74,151.7,17.9354874]
[1745525840842,11.40652959,151.74,151.7,6.59195781]
[1745525842039,11.40652959,151.74,151.71,9.04492695]
[1745525842846,11.40652959,151.74,151.71,6.5914183]
[1745525846232,0.063,151.74,151.72,11.34352959]
[1745525846432,0.063,151.74,151.73,6.59065445]
[1745525850352,0.063,151.74,151.73,17.93418404]
[1745525851053,0.063,151.74,151.73,20.38411333]
[1745525854853,0.063,151.74,151.73,39.17592376]
[1745525859260,0.063,151.77,151.74,18.79181043]
[1745525859560,0.063,151.77,151.76,11.34352959]
[1745525860259,0.063,151.8,151.76,75.50945838]
[1745525860470,0.063,151.8,151.79,11.34352959]
[1745525860940,0.063,151.8,151.79,30.13534002]
[1745525861147,0.063,151.8,151.79,35.03271845]
[1745525861662,0.063,151.8,151.79,4.89737843]
[1745525862046,11.40652959,151.8,151.79,4.89737843]
[1745525862867,11.40652959,151.8,151.75,6.58959874]
[1745525863161,11.34352959,151.79,151.75,6.58959874]
[1745525863577,94.10652959,151.8,151.75,36.58277719]
[1745525863751,94.10652959,151.8,151.76,16.24021254]
[1745525864257,82.763,151.8,151.77,11.34352959]
[1745525864460,82.763,151.8,151.79,17.93157886]
[1745525864656,0.063,151.8,151.79,36.72338929]
[1745525866057,0.063,151.8,151.79,11.4795748]
[1745525867169,0.063,151.8,151.79,4.89152553]
[1745525867368,11.40652959,151.8,151.76,6.58921525]
[1745525868057,11.40652959,151.8,151.76,17.93274484]
[1745525868368,11.40652959,151.8,151.77,4.89290146]
[1745525868864,11.40652959,151.8,151.77,11.48167556]
[1745525869674,0.063,151.8,151.77,6.5887741]
[1745525869848,0.063,151.8,151.78,11.34352959]
[1745525870749,0.063,151.8,151.77,17.93230369]
[1745525871074,0.063,151.8,151.77,6.5887741]
[1745525872448,11.40652959,151.8,151.76,6.58915056]
[1745525872768,0.063,151.8,151.77,22.82412909]
[1745525872970,0.063,151.8,151.77,11.4805995]
[1745525873564,0.063,151.8,151.77,6.58874372]
[1745525874452,11.40652959,151.8,151.77,6.58874372]
[1745525875279,0.063,151.8,151.77,6.58874372]
[1745525876658,0.063,151.8,151.78,11.34352959]
[1745525878374,0.063,151.8,151.77,30.13534002]
[1745525878877,0.063,151.8,151.78,6.58848333]
[1745525882277,0.063,151.8,151.79,11.34352959]
[1745525883576,0.063,151.8,151.79,16.23852828]
[1745525884183,0.063,151.8,151.79,22.82657755]
[1745525885972,0.063,151.8,151.79,11.48304796]
[1745525886180,0.063,151.8,151.79,4.89499869]
[1745525887282,11.40652959,151.8,151.76,6.58916769]
[1745525887480,11.34352959,151.79,151.76,6.58916769]
[1745525888363,11.34352959,151.79,151.77,4.89776545]
[1745525889064,11.34352959,151.79,151.77,11.48666165]
[1745525889284,11.34352959,151.79,151.77,6.5888962]
[1745525889785,82.763,151.8,151.77,6.5888962]
[1745525889977,94.10652959,151.8,151.77,6.5888962]
[1745525891286,94.10652959,151.8,151.78,4.90007535]
[1745525891490,94.10652959,151.8,151.78,11.48850228]
[1745525891787,94.10652959,151.8,151.78,4.90007535]
[1745525892293,94.10652959,151.8,151.77,6.58871547]
[1745525893191,11.34352959,151.79,151.76,6.5893516]
[1745525893571,11.34352959,151.79,151.77,4.90400206]
[1745525894088,94.10652959,151.8,151.77,11.49253212]
[1745525894779,94.10652959,151.8,151.78,4.90400206]
[1745525895286,94.10652959,151.8,151.77,6.58853006]
[1745525895892,94.10652959,151.8,151.76,6.5893516]
[1745525896396,94.10652959,151.8,151.77,4.90589254]
[1745525897193,94.10652959,151.8,151.78,4.90589254]
[1745525897894,94.10652959,151.8,151.76,17.93288119]
[1745525898193,94.10652959,151.8,151.76,6.5893516]
[1745525898381,94.10652959,151.8,151.77,2.45409531]
[1745525899075,11.34352959,151.79,151.76,6.5893516]
[1745525899278,11.34352959,151.77,151.7,1.6628]
[1745525899481,11.34352959,151.76,151.72,11.34352959]
[1745525899786,11.34352959,151.76,151.73,7.36590735]
[1745525899979,11.34352959,151.75,151.73,7.36590735]
[1745525900393,11.34352959,151.74,151.73,7.36590735]
[1745525902899,11.34352959,151.74,151.73,4.91060475]
[1745525904388,11.34352959,151.74,151.7,6.62188195]
[1745525904584,6.58985445,151.75,151.7,0.03]
[1745525904585,11.34352959,151.71,151.7,0.03]
[1745525905212,11.34352959,151.71,151.7,4.94016829]
[1745525906417,11.34352959,151.71,151.7,0.03]
[1745525912298,17.93505289,151.71,151.7,0.03]
[1745525913218,6.58804927,151.79,151.7,11.37352959]
[1745525913408,11.40652959,151.8,151.76,11.34352959]
[1745525913608,30.0,151.77,151.76,11.34352959]
[1745525914114,11.40652959,151.8,151.75,11.34352959]
[1745525914309,11.40652959,151.8,151.76,6.5893516]
[1745525915307,0.063,151.8,151.76,17.93288119]
[1745525916020,11.34352959,151.79,151.74,6.59022011]
[1745525916216,11.34352959,151.77,151.73,31.11400245]
[1745525916421,11.34352959,151.78,151.73,31.11400245]
[1745525917309,0.063,151.8,151.7,41.88970788]
[1745525917310,11.34352959,151.76,151.72,6.5909173]
[1745525917621,11.34352959,151.75,151.72,6.5909173]
[1745525918428,11.34352959,151.76,151.72,6.5909173]
[1745525918631,11.34352959,151.76,151.72,17.93444689]
[1745525919911,11.34352959,151.77,151.72,17.93444689]
[1745525920128,11.34352959,151.77,151.73,4.88777823]
[1745525920829,11.34352959,151.76,151.73,4.88777823]
[1745525921125,11.34352959,151.76,151.72,6.5909173]
[1745525921426,11.34352959,151.76,151.71,17.93490222]
[1745525921635,11.34352959,151.76,151.72,11.34352959]
[1745525922634,11.34352959,151.76,151.72,17.93446757]
[1745525922937,11.34352959,151.76,151.73,4.88987045]
[1745525923524,11.34352959,151.76,151.72,17.93446757]
[1745525925123,11.34352959,151.76,151.73,4.8904343]
[1745525925928,11.34352959,151.76,151.71,17.93489228]
[1745525926827,17.93288343,151.76,151.72,4.89171155]
[1745525927038,94.04352959,151.75,151.72,4.89171155]
[1745525927413,94.04352959,151.75,151.71,17.93489228]
[1745525928934,82.7,151.75,151.71,17.93489228]
[1745525929110,82.7,151.75,151.72,4.89358082]
[1745525929844,82.7,151.75,151.71,17.93489228]
[1745525931129,82.7,151.75,151.72,11.34352959]
[1745525931521,82.7,151.75,151.73,4.89491477]
[1745525932330,82.7,151.75,151.72,11.34352959]
[1745525932615,82.7,151.75,151.73,6.59065445]
[1745525934136,82.7,151.75,151.72,6.59108884]
[1745525934436,82.7,151.75,151.73,4.89660107]
[1745525935034,82.7,151.75,151.72,6.59108884]
[1745525936746,82.7,151.75,151.73,4.89804455]
[1745525937529,82.7,151.75,151.72,6.59108884]
[1745525939140,82.7,151.75,151.73,4.90276606]
[1745525939841,82.7,151.75,151.73,11.49314728]
[1745525940339,82.7,151.75,151.73,6.59038122]
[1745525940942,82.7,151.75,151.72,6.59108884]
[1745525941119,82.7,151.75,151.74,4.90456125]
[1745525941826,82.7,151.75,151.74,4.90489008]
[1745525943254,82.7,151.75,151.74,11.49511019]
[1745525944029,82.7,151.75,151.74,13.94935245]
[1745525944429,82.7,151.75,151.74,7.35913234]
[1745525944736,94.04352959,151.77,151.74,4.90489008]
[1745525945650,94.04352959,151.77,151.74,11.49510759]
[1745525946259,94.04352959,151.77,151.73,6.5904547]
[1745525947730,11.34352959,151.76,151.72,17.93441005]
[1745525947930,11.34352959,151.76,151.74,4.909924]
[1745525948744,11.34352959,151.76,151.72,17.93441005]
[1745525948938,11.34352959,151.76,151.71,17.93505289]
[1745525949142,11.34352959,151.76,151.72,2.45500033]
[1745525949646,11.34352959,151.76,151.73,4.91006593]
[1745525950452,11.34352959,151.75,151.74,4.91006593]
[1745525950651,94.04352959,151.75,151.74,4.91006593]
[1745525951726,94.04352959,151.75,151.71,6.5914391]
[1745525951950,11.34352959,151.74,151.71,6.5914391]
[1745525952251,11.34352959,151.74,151.72,7.36953953]
[1745525952838,11.34352959,151.73,151.72,7.36953953]
[1745525953055,11.34352959,151.73,151.72,4.91302653]
[1745525954758,11.34352959,151.73,151.72,7.3709479]
[1745525956546,17.93418404,151.73,151.72,7.3709479]
[1745525957137,17.93418404,151.73,151.7,0.03]
[1745525957356,11.34352959,151.71,151.7,0.03]
[1745525958034,17.93505289,151.71,151.7,0.03]
[1745525958433,19.51785289,151.71,151.7,0.03]
[1745525958743,19.51785289,151.71,151.66,0.03]
[1745525958959,11.34352959,151.67,151.66,0.03]
[1745525959460,11.34352959,151.67,151.66,4.9441996]
[1745525960553,11.34352959,151.67,151.66,0.03]
[1745525963265,94.04352959,151.67,151.66,0.03]
[1745525963743,100.63679127,151.67,151.66,0.03]
[1745525964134,126.63679127,151.67,151.66,0.03]
[1745525964449,17.93679127,151.67,151.66,0.03]
[1745525965637,26.0,151.66,151.65,0.03]
[1745525965844,37.34352959,151.66,151.65,0.03]
[1745525966050,56.13534002,151.66,151.65,0.03]
[1745525967143,59.41149722,151.66,151.65,0.03]
[1745525967936,79.18519364,151.66,151.65,0.03]
[1745525969656,79.18519364,151.66,151.63,0.03]
[1745525969657,82.64,151.64,151.63,0.03]
[1745525969959,93.98352959,151.64,151.63,0.03]
[1745525971139,11.34352959,151.64,151.63,0.03]
[1745525975565,17.93809566,151.64,151.63,0.03]
[1745525978078,43.93809566,151.64,151.63,0.03]
[1745525980270,62.72990609,151.64,151.63,0.03]
[1745525980489,26.0,151.62,151.61,0.03]
[1745525980763,37.34352959,151.62,151.61,0.03]
[1745525981554,6.59587098,151.61,151.56,0.03]
[1745525981855,76.49351893,151.61,151.56,0.03]
[1745525983070,37.34352959,151.61,151.56,0.03]
[1745525984181,6.59430578,151.65,151.57,11.34352959]
[1745525984386,11.34352959,151.63,151.59,11.34352959]
[1745525984975,82.7,151.61,151.6,6.62630606]
[1745525988671,94.04352959,151.63,151.6,6.62630606]
[1745525989551,94.04352959,151.63,151.6,0.03]
[1745525990287,82.7,151.63,151.6,0.03]
[1745525990490,82.7,151.63,151.61,11.34352959]
[1745525990864,11.34352959,151.66,151.61,11.34352959]
[1745525991080,82.7,151.65,151.61,11.34352959]
[1745525993779,82.7,151.65,151.62,6.59543595]
[1745525994166,82.7,151.65,151.62,17.93896554]